[Event "Titled Tuesday Blitz October 11 Early 2022"]
[White "Rustemov, Alexander"]
[Black "Martinez Alcantara, Jose Eduardo"]
[WhiteFideId "4119002"]
[BlackFideId "3805662"]
[WhiteElo "2820"]
[BlackElo "2703"]
[Result "1-0"]
[Round "06"]
[TimeControl "180+1"]
[Date "2022.10.11"]
[WhiteClock "0:00:32"]
[BlackClock "0:00:19"]

1. d4 {[%clk 0:03:00]}  Nf6 {[%clk 0:02:59]} 2. c4 {[%clk 0:03:01]}  e6 {[%clk 0:03:00]} 3. Nf3 {[%clk 0:03:02]}  a6 {[%clk 0:03:00]} 4. Nc3 {[%clk 0:03:01]}  d5 {[%clk 0:02:59]} 5. cxd5 {[%clk 0:02:59]}  exd5 {[%clk 0:03:00]} 6. Bg5 {[%clk 0:02:59]}  Be6 {[%clk 0:03:01]} 7. e3 {[%clk 0:02:59]}  Nbd7 {[%clk 0:03:00]} 8. Bd3 {[%clk 0:02:59]}  h6 {[%clk 0:03:00]} 9. Bh4 {[%clk 0:02:57]}  Bd6 {[%clk 0:03:00]} 10. O-O {[%clk 0:02:56]}  c6 {[%clk 0:03:01]} 11. Qc2 {[%clk 0:02:54]}  O-O {[%clk 0:03:00]} 12. Bg3 {[%clk 0:02:47]}  Qb8 {[%clk 0:02:54]} 13. Bxd6 {[%clk 0:02:46]}  Qxd6 {[%clk 0:02:54]} 14. h3 {[%clk 0:02:46]}  Nb6 {[%clk 0:02:49]} 15. Rfc1 {[%clk 0:02:42]}  Rfc8 {[%clk 0:02:47]} 16. Na4 {[%clk 0:02:36]}  Nxa4 {[%clk 0:02:42]} 17. Qxa4 {[%clk 0:02:37]}  Nd7 {[%clk 0:02:40]} 18. Qc2 {[%clk 0:02:33]}  a5 {[%clk 0:02:38]} 19. a3 {[%clk 0:02:23]}  b6 {[%clk 0:02:38]} 20. Qd2 {[%clk 0:02:14]}  c5 {[%clk 0:02:33]} 21. Bb5 {[%clk 0:02:07]}  c4 {[%clk 0:02:24]} 22. a4 {[%clk 0:01:58]}  Bf5 {[%clk 0:02:19]} 23. Qc3 {[%clk 0:01:52]}  Nf6 {[%clk 0:02:18]} 24. Nd2 {[%clk 0:01:52]}  Qe6 {[%clk 0:02:14]} 25. b3 {[%clk 0:01:47]}  Ne4 {[%clk 0:01:59]} 26. Nxe4 {[%clk 0:01:47]}  Bxe4 {[%clk 0:02:00]} 27. f3 {[%clk 0:01:41]}  Bxf3 {[%clk 0:01:48]} 28. gxf3 {[%clk 0:01:40]}  Qxh3 {[%clk 0:01:49]} 29. bxc4 {[%clk 0:01:31]}  Qxf3 {[%clk 0:01:40]} 30. Qe1 {[%clk 0:01:26]}  Qg4+ {[%clk 0:01:33]} 31. Kf1 {[%clk 0:01:23]}  dxc4 {[%clk 0:01:32]} 32. Rxc4 {[%clk 0:01:14]}  Rxc4 {[%clk 0:01:27]} 33. Bxc4 {[%clk 0:01:15]}  Rc8 {[%clk 0:01:05]} 34. Rc1 {[%clk 0:01:12]}  Qf3+ {[%clk 0:01:05]} 35. Qf2 {[%clk 0:01:08]}  Qh1+ {[%clk 0:01:05]} 36. Qg1 {[%clk 0:01:08]}  Qh3+ {[%clk 0:01:05]} 37. Ke2 {[%clk 0:01:07]}  Re8 {[%clk 0:00:51]} 38. Qf2 {[%clk 0:01:04]}  Qd7 {[%clk 0:00:47]} 39. Bb5 {[%clk 0:00:57]}  Qxd4 {[%clk 0:00:38]} 40. Qxf7+ {[%clk 0:00:47]}  Kh7 {[%clk 0:00:29]} 41. Qxe8 {[%clk 0:00:40]}  Qb2+ {[%clk 0:00:30]} 42. Kd1 {[%clk 0:00:39]}  Qb3+ {[%clk 0:00:30]} 43. Rc2 {[%clk 0:00:39]}  Qb1+ {[%clk 0:00:31]} 44. Kd2 {[%clk 0:00:38]}  Qb4+ {[%clk 0:00:31]} 45. Ke2 {[%clk 0:00:38]}  Qg4+ {[%clk 0:00:32]} 46. Kd3 {[%clk 0:00:39]}  Qd1+ {[%clk 0:00:33]} 47. Rd2 {[%clk 0:00:38]}  Qf1+ {[%clk 0:00:26]} 48. Kd4 {[%clk 0:00:38]}  Qa1+ {[%clk 0:00:24]} 49. Kd5 {[%clk 0:00:34]}  Qc3 {[%clk 0:00:18]} 50. Qe4+ {[%clk 0:00:34]}  Kh8 {[%clk 0:00:18]} 51. Qe8+ {[%clk 0:00:32]}  Kh7 {[%clk 0:00:19]} 52. Bd3+ {[%clk 0:00:32]} 1-0


[Site "https://www.chess.com"]

[Event "Titled Tuesday Blitz October 11 Early 2022"]
[White "Samant Aditya S"]
[Black "Winterberg, Lukas"]
[WhiteFideId "35080580"]
[BlackFideId "24622702"]
[WhiteElo "2367"]
[BlackElo "2349"]
[Result "0-1"]
[Round "06"]
[TimeControl "180+1"]
[Date "2022.10.12"]
[WhiteClock "0:00:04"]
[BlackClock "0:00:22"]

1. e4 {[%clk 0:02:54]}  g6 {[%clk 0:02:58]} 2. d4 {[%clk 0:02:54]}  Bg7 {[%clk 0:02:58]} 3. Nc3 {[%clk 0:02:54]}  d6 {[%clk 0:02:56]} 4. Be3 {[%clk 0:02:53]}  a6 {[%clk 0:02:56]} 5. a4 {[%clk 0:02:53]}  Nf6 {[%clk 0:02:53]} 6. h3 {[%clk 0:02:53]}  O-O {[%clk 0:02:53]} 7. Nf3 {[%clk 0:02:52]}  b6 {[%clk 0:02:53]} 8. Bd3 {[%clk 0:02:49]}  Bb7 {[%clk 0:02:53]} 9. O-O {[%clk 0:02:49]}  Nbd7 {[%clk 0:02:52]} 10. Re1 {[%clk 0:02:46]}  e5 {[%clk 0:02:46]} 11. Qd2 {[%clk 0:02:43]}  Re8 {[%clk 0:02:46]} 12. dxe5 {[%clk 0:02:41]}  Nxe5 {[%clk 0:02:45]} 13. Nxe5 {[%clk 0:02:41]}  dxe5 {[%clk 0:02:43]} 14. Qe2 {[%clk 0:02:41]}  Qe7 {[%clk 0:02:38]} 15. f3 {[%clk 0:02:28]}  Nd7 {[%clk 0:02:38]} 16. Bc4 {[%clk 0:02:27]}  Nc5 {[%clk 0:02:37]} 17. Nd5 {[%clk 0:02:25]}  Qd8 {[%clk 0:02:30]} 18. Rad1 {[%clk 0:02:21]}  Qc8 {[%clk 0:02:21]} 19. a5 {[%clk 0:02:12]}  Bxd5 {[%clk 0:01:57]} 20. Bxd5 {[%clk 0:02:11]}  Rb8 {[%clk 0:01:57]} 21. Qc4 {[%clk 0:02:03]}  Ne6 {[%clk 0:01:48]} 22. axb6 {[%clk 0:01:53]}  cxb6 {[%clk 0:01:49]} 23. Qxc8 {[%clk 0:01:53]}  Rexc8 {[%clk 0:01:36]} 24. Bxe6 {[%clk 0:01:40]}  fxe6 {[%clk 0:01:37]} 25. c3 {[%clk 0:01:41]}  Rc7 {[%clk 0:01:37]} 26. Rd6 {[%clk 0:01:40]}  Kf7 {[%clk 0:01:31]} 27. Red1 {[%clk 0:01:31]}  h6 {[%clk 0:01:04]} 28. Kf1 {[%clk 0:00:44]}  Bf8 {[%clk 0:01:00]} 29. Rd7+ {[%clk 0:00:36]}  Rxd7 {[%clk 0:01:00]} 30. Rxd7+ {[%clk 0:00:37]}  Kf6 {[%clk 0:01:00]} 31. Ke2 {[%clk 0:00:26]}  g5 {[%clk 0:00:55]} 32. g4 {[%clk 0:00:22]}  Bc5 {[%clk 0:00:52]} 33. Bd2 {[%clk 0:00:19]}  a5 {[%clk 0:00:51]} 34. Kd3 {[%clk 0:00:16]}  b5 {[%clk 0:00:45]} 35. Be1 {[%clk 0:00:17]}  a4 {[%clk 0:00:41]} 36. Bg3 {[%clk 0:00:17]}  b4 {[%clk 0:00:34]} 37. Rc7 {[%clk 0:00:10]}  Bf8 {[%clk 0:00:31]} 38. Ra7 {[%clk 0:00:07]}  a3 {[%clk 0:00:29]} 39. bxa3 {[%clk 0:00:07]}  b3 {[%clk 0:00:28]} 40. Ra5 {[%clk 0:00:05]}  Bd6 {[%clk 0:00:25]} 41. Ra6 {[%clk 0:00:02]}  b2 {[%clk 0:00:24]} 42. Rxd6 {[%clk 0:00:03]}  b1=Q+ {[%clk 0:00:24]} 43. Ke3 {[%clk 0:00:04]}  Qc1+ {[%clk 0:00:22]} 44. Kf2 {[%clk 0:00:04]}  Rb2+ {[%clk 0:00:22]} 0-1


[Site "https://www.chess.com"]

[Event "Titled Tuesday Blitz October 11 Early 2022"]
[White "Samarth, J Rao"]
[Black "Terzi, Alexei"]
[WhiteFideId "46652370"]
[BlackFideId "13505076"]
[WhiteElo "1564"]
[BlackElo "2172"]
[Result "1-0"]
[Round "06"]
[TimeControl "180+1"]
[Date "2022.10.12"]
[WhiteClock "0:00:05"]
[BlackClock "0:00:03"]

1. c4 {[%clk 0:01:22]}  c5 {[%clk 0:02:59]} 2. e3 {[%clk 0:01:16]}  Nc6 {[%clk 0:02:59]} 3. d4 {[%clk 0:01:16]}  cxd4 {[%clk 0:02:56]} 4. exd4 {[%clk 0:01:17]}  d5 {[%clk 0:02:55]} 5. cxd5 {[%clk 0:01:18]}  Qxd5 {[%clk 0:02:52]} 6. Nf3 {[%clk 0:01:18]}  Bg4 {[%clk 0:02:49]} 7. Be2 {[%clk 0:01:16]}  e6 {[%clk 0:02:39]} 8. Nc3 {[%clk 0:01:15]}  Qa5 {[%clk 0:02:33]} 9. O-O {[%clk 0:01:07]}  Nf6 {[%clk 0:02:33]} 10. Be3 {[%clk 0:01:01]}  Be7 {[%clk 0:02:30]} 11. a3 {[%clk 0:00:58]}  O-O {[%clk 0:02:21]} 12. b4 {[%clk 0:00:54]}  Qd8 {[%clk 0:02:20]} 13. h3 {[%clk 0:00:50]}  Bh5 {[%clk 0:02:19]} 14. Rc1 {[%clk 0:00:46]}  Nd5 {[%clk 0:01:54]} 15. Nxd5 {[%clk 0:00:44]}  exd5 {[%clk 0:01:52]} 16. Ne5 {[%clk 0:00:36]}  Bxe2 {[%clk 0:01:44]} 17. Qxe2 {[%clk 0:00:37]}  Rc8 {[%clk 0:01:38]} 18. Nxc6 {[%clk 0:00:36]}  Rxc6 {[%clk 0:01:35]} 19. Rxc6 {[%clk 0:00:33]}  bxc6 {[%clk 0:01:35]} 20. Qa6 {[%clk 0:00:32]}  Qd7 {[%clk 0:01:34]} 21. Rc1 {[%clk 0:00:21]}  Rc8 {[%clk 0:01:11]} 22. b5 {[%clk 0:00:17]}  Bd6 {[%clk 0:01:06]} 23. bxc6 {[%clk 0:00:08]}  Qc7 {[%clk 0:01:06]} 24. Bd2 {[%clk 0:00:08]}  Ra8 {[%clk 0:00:42]} 25. Qb7 {[%clk 0:00:06]}  Rb8 {[%clk 0:00:37]} 26. Qxc7 {[%clk 0:00:03]}  Bxc7 {[%clk 0:00:38]} 27. Bb4 {[%clk 0:00:03]}  Bb6 {[%clk 0:00:31]} 28. Re1 {[%clk 0:00:02]}  Rc8 {[%clk 0:00:25]} 29. Re7 {[%clk 0:00:01]}  g6 {[%clk 0:00:20]} 30. Rd7 {[%clk 0:00:02]}  Rxc6 {[%clk 0:00:20]} 31. Rxd5 {[%clk 0:00:03]}  Rc1+ {[%clk 0:00:19]} 32. Kh2 {[%clk 0:00:03]}  Rd1 {[%clk 0:00:19]} 33. Bc5 {[%clk 0:00:03]}  Bxc5 {[%clk 0:00:19]} 34. Rxc5 {[%clk 0:00:04]}  Rxd4 {[%clk 0:00:19]} 35. Ra5 {[%clk 0:00:04]}  Rd7 {[%clk 0:00:19]} 36. Kg3 {[%clk 0:00:04]}  Kg7 {[%clk 0:00:20]} 37. Kf4 {[%clk 0:00:05]}  h5 {[%clk 0:00:20]} 38. g4 {[%clk 0:00:05]}  h4 {[%clk 0:00:20]} 39. f3 {[%clk 0:00:04]}  Re7 {[%clk 0:00:19]} 40. g5 {[%clk 0:00:03]}  Rd7 {[%clk 0:00:12]} 41. Kg4 {[%clk 0:00:03]}  Rc7 {[%clk 0:00:13]} 42. Kxh4 {[%clk 0:00:03]}  Rd7 {[%clk 0:00:13]} 43. f4 {[%clk 0:00:03]}  Rc7 {[%clk 0:00:14]} 44. Kg4 {[%clk 0:00:04]}  Rd7 {[%clk 0:00:14]} 45. Ra4 {[%clk 0:00:04]}  Rc7 {[%clk 0:00:14]} 46. h4 {[%clk 0:00:04]}  Rd7 {[%clk 0:00:14]} 47. f5 {[%clk 0:00:04]}  gxf5+ {[%clk 0:00:14]} 48. Kxf5 {[%clk 0:00:05]}  Rd5+ {[%clk 0:00:15]} 49. Ke4 {[%clk 0:00:05]}  Rd7 {[%clk 0:00:15]} 50. Kf5 {[%clk 0:00:05]}  Rd5+ {[%clk 0:00:15]} 51. Kg4 {[%clk 0:00:06]}  Rd7 {[%clk 0:00:15]} 52. h5 {[%clk 0:00:06]}  Kh7 {[%clk 0:00:15]} 53. Rf4 {[%clk 0:00:05]}  Kg7 {[%clk 0:00:14]} 54. a4 {[%clk 0:00:05]}  a5 {[%clk 0:00:13]} 55. h6+ {[%clk 0:00:03]}  Kg8 {[%clk 0:00:12]} 56. Kh5 {[%clk 0:00:03]}  Rd5 {[%clk 0:00:06]} 57. Re4 {[%clk 0:00:03]}  Rf5 {[%clk 0:00:01]} 58. Re8+ {[%clk 0:00:01]}  Kh7 {[%clk 0:00:01]} 59. Re4 {[%clk 0:00:02]}  Rf1 {[%clk 0:00:02]} 60. Kg4 {[%clk 0:00:02]}  Rg1+ {[%clk 0:00:02]} 61. Kf5 {[%clk 0:00:02]}  Rf1+ {[%clk 0:00:03]} 62. Rf4 {[%clk 0:00:03]}  Ra1 {[%clk 0:00:02]} 63. Kf6 {[%clk 0:00:04]}  Rb1 {[%clk 0:00:03]} 64. Kxf7 {[%clk 0:00:04]}  Rb7+ {[%clk 0:00:03]} 65. Kf6 {[%clk 0:00:04]}  Rb6+ {[%clk 0:00:04]} 66. Kf5 {[%clk 0:00:05]}  Rb7 {[%clk 0:00:05]} 67. Re4 {[%clk 0:00:05]}  Rb8 {[%clk 0:00:05]} 68. Re7+ {[%clk 0:00:05]}  Kg8 {[%clk 0:00:06]} 69. h7+ {[%clk 0:00:05]}  Kh8 {[%clk 0:00:06]} 70. g6 {[%clk 0:00:05]}  Rf8+ {[%clk 0:00:07]} 71. Rf7 {[%clk 0:00:04]}  Re8 {[%clk 0:00:05]} 72. Kg5 {[%clk 0:00:04]}  Re5+ {[%clk 0:00:06]} 73. Rf5 {[%clk 0:00:04]}  Re7 {[%clk 0:00:05]} 74. Rxa5 {[%clk 0:00:04]}  Kg7 {[%clk 0:00:05]} 75. Ra8 {[%clk 0:00:04]}  Re5+ {[%clk 0:00:05]} 76. Kf4 {[%clk 0:00:05]}  Rg5 {[%clk 0:00:02]} 77. h8=Q+ {[%clk 0:00:03]}  Kxg6 {[%clk 0:00:02]} 78. Qg8+ {[%clk 0:00:03]}  Kf6 {[%clk 0:00:02]} 79. Qxg5+ {[%clk 0:00:04]}  Ke6 {[%clk 0:00:03]} 80. Ra6+ {[%clk 0:00:05]}  Kd7 {[%clk 0:00:03]} 81. Qg7+ {[%clk 0:00:05]}  Kc8 {[%clk 0:00:03]} 82. Ra8# {[%clk 0:00:05]} 1-0


[Site "https://www.chess.com"]

[Event "Titled Tuesday Blitz October 11 Early 2022"]
[White "Sarana, Alexey"]
[Black "Vaibhav Jayant Raut"]
[WhiteFideId "24133795"]
[BlackFideId "5089034"]
[WhiteElo "2689"]
[BlackElo "2147"]
[Result "1-0"]
[Round "06"]
[TimeControl "180+1"]
[Date "2022.10.11"]
[WhiteClock "0:00:59"]
[BlackClock "0:00:06"]

1. c4 {[%clk 0:02:57]}  c5 {[%clk 0:02:59]} 2. Nc3 {[%clk 0:02:57]}  Nc6 {[%clk 0:03:00]} 3. Nf3 {[%clk 0:02:57]}  e5 {[%clk 0:02:56]} 4. e3 {[%clk 0:02:53]}  d6 {[%clk 0:02:53]} 5. Be2 {[%clk 0:02:51]}  Nf6 {[%clk 0:02:47]} 6. d4 {[%clk 0:02:50]}  exd4 {[%clk 0:02:40]} 7. exd4 {[%clk 0:02:51]}  Bg4 {[%clk 0:02:34]} 8. O-O {[%clk 0:02:37]}  Be7 {[%clk 0:02:31]} 9. d5 {[%clk 0:02:23]}  Bxf3 {[%clk 0:02:26]} 10. Bxf3 {[%clk 0:02:24]}  Nd4 {[%clk 0:02:24]} 11. Be3 {[%clk 0:02:24]}  O-O {[%clk 0:02:18]} 12. Bxd4 {[%clk 0:02:23]}  cxd4 {[%clk 0:02:19]} 13. Qxd4 {[%clk 0:02:24]}  Nd7 {[%clk 0:02:18]} 14. Ne4 {[%clk 0:02:09]}  f5 {[%clk 0:02:03]} 15. Ng3 {[%clk 0:02:09]}  Bf6 {[%clk 0:01:54]} 16. Qd2 {[%clk 0:02:09]}  g6 {[%clk 0:01:50]} 17. Rfe1 {[%clk 0:02:05]}  Ne5 {[%clk 0:01:47]} 18. Be2 {[%clk 0:02:05]}  a5 {[%clk 0:01:46]} 19. Rac1 {[%clk 0:01:52]}  Nd7 {[%clk 0:01:37]} 20. b3 {[%clk 0:01:50]}  Nc5 {[%clk 0:01:32]} 21. Bf3 {[%clk 0:01:50]}  Bg5 {[%clk 0:01:30]} 22. Qc2 {[%clk 0:01:45]}  Bxc1 {[%clk 0:01:29]} 23. Rxc1 {[%clk 0:01:46]}  Qf6 {[%clk 0:01:29]} 24. Ne2 {[%clk 0:01:46]}  Rfe8 {[%clk 0:01:27]} 25. Qd2 {[%clk 0:01:42]}  g5 {[%clk 0:01:19]} 26. h3 {[%clk 0:01:41]}  h6 {[%clk 0:01:18]} 27. Nd4 {[%clk 0:01:38]}  Re7 {[%clk 0:01:05]} 28. Ne6 {[%clk 0:01:38]}  b6 {[%clk 0:01:04]} 29. b4 {[%clk 0:01:14]}  axb4 {[%clk 0:01:01]} 30. Qxb4 {[%clk 0:01:15]}  Rxa2 {[%clk 0:00:59]} 31. Qxb6 {[%clk 0:01:14]}  Ra1 {[%clk 0:00:44]} 32. Qd8+ {[%clk 0:01:13]}  Kh7 {[%clk 0:00:44]} 33. Rxa1 {[%clk 0:01:04]}  Qxa1+ {[%clk 0:00:45]} 34. Kh2 {[%clk 0:01:04]}  Qe5+ {[%clk 0:00:33]} 35. g3 {[%clk 0:01:04]}  Rxe6 {[%clk 0:00:21]} 36. dxe6 {[%clk 0:01:02]}  Nxe6 {[%clk 0:00:16]} 37. Qe7+ {[%clk 0:01:01]}  Kg6 {[%clk 0:00:13]} 38. Bh5+ {[%clk 0:00:58]}  Kxh5 {[%clk 0:00:06]} 39. Qf7# {[%clk 0:00:59]} 1-0


[Site "https://www.chess.com"]

[Event "Titled Tuesday Blitz October 11 Early 2022"]
[White "Sargsyan, Anna M."]
[Black "Remizov, Yaroslav"]
[WhiteFideId "13308130"]
[BlackFideId "34134015"]
[WhiteElo "2284"]
[BlackElo "2417"]
[Result "0-1"]
[Round "06"]
[TimeControl "180+1"]
[Date "2022.10.12"]
[WhiteClock "0:00:02"]
[BlackClock "0:00:04"]

1. d4 {[%clk 0:02:50]}  Nf6 {[%clk 0:02:56]} 2. c4 {[%clk 0:02:49]}  e6 {[%clk 0:02:56]} 3. Nf3 {[%clk 0:02:49]}  d5 {[%clk 0:02:56]} 4. Nc3 {[%clk 0:02:50]}  c5 {[%clk 0:02:55]} 5. cxd5 {[%clk 0:02:49]}  cxd4 {[%clk 0:02:55]} 6. Nxd4 {[%clk 0:02:50]}  Nxd5 {[%clk 0:02:52]} 7. Nxd5 {[%clk 0:02:46]}  Qxd5 {[%clk 0:02:52]} 8. e3 {[%clk 0:02:46]}  Nc6 {[%clk 0:02:46]} 9. Nxc6 {[%clk 0:02:45]}  bxc6 {[%clk 0:02:38]} 10. Bd2 {[%clk 0:02:44]}  Be7 {[%clk 0:02:34]} 11. Be2 {[%clk 0:02:41]}  O-O {[%clk 0:02:24]} 12. O-O {[%clk 0:02:39]}  Rb8 {[%clk 0:02:23]} 13. Bc3 {[%clk 0:02:34]}  Rd8 {[%clk 0:02:23]} 14. Qc2 {[%clk 0:02:33]}  e5 {[%clk 0:02:14]} 15. Rfd1 {[%clk 0:02:19]}  Qe6 {[%clk 0:02:12]} 16. Rxd8+ {[%clk 0:02:17]}  Bxd8 {[%clk 0:02:13]} 17. Qe4 {[%clk 0:02:15]}  Bc7 {[%clk 0:02:05]} 18. Bc4 {[%clk 0:02:11]}  Qd6 {[%clk 0:02:04]} 19. a3 {[%clk 0:01:50]}  Bb7 {[%clk 0:02:00]} 20. Qf3 {[%clk 0:01:45]}  Rd8 {[%clk 0:01:50]} 21. Qxf7+ {[%clk 0:01:36]}  Kh8 {[%clk 0:01:49]} 22. h3 {[%clk 0:01:12]}  c5 {[%clk 0:01:35]} 23. Qe6 {[%clk 0:01:06]}  Qf8 {[%clk 0:01:18]} 24. b4 {[%clk 0:00:54]}  Rd6 {[%clk 0:01:17]} 25. Qf7 {[%clk 0:00:42]}  Qxf7 {[%clk 0:01:04]} 26. Bxf7 {[%clk 0:00:43]}  Rd3 {[%clk 0:01:04]} 27. Be1 {[%clk 0:00:40]}  cxb4 {[%clk 0:01:00]} 28. Bxb4 {[%clk 0:00:30]}  Bb6 {[%clk 0:00:58]} 29. Bc4 {[%clk 0:00:29]}  Rd8 {[%clk 0:00:54]} 30. a4 {[%clk 0:00:28]}  Rc8 {[%clk 0:00:50]} 31. Be6 {[%clk 0:00:27]}  Re8 {[%clk 0:00:49]} 32. Bf7 {[%clk 0:00:26]}  Rd8 {[%clk 0:00:47]} 33. a5 {[%clk 0:00:26]}  Bc7 {[%clk 0:00:46]} 34. Bc5 {[%clk 0:00:25]}  Be4 {[%clk 0:00:35]} 35. a6 {[%clk 0:00:20]}  Bb8 {[%clk 0:00:28]} 36. f3 {[%clk 0:00:19]}  Bc2 {[%clk 0:00:22]} 37. Rc1 {[%clk 0:00:17]}  Ba4 {[%clk 0:00:16]} 38. Be7 {[%clk 0:00:18]}  Rd1+ {[%clk 0:00:13]} 39. Rxd1 {[%clk 0:00:15]}  Bxd1 {[%clk 0:00:14]} 40. Bc4 {[%clk 0:00:15]}  Ba4 {[%clk 0:00:13]} 41. Kf2 {[%clk 0:00:16]}  h6 {[%clk 0:00:11]} 42. e4 {[%clk 0:00:15]}  Kh7 {[%clk 0:00:10]} 43. Ke3 {[%clk 0:00:15]}  Bc6 {[%clk 0:00:08]} 44. Bc5 {[%clk 0:00:15]}  Kg6 {[%clk 0:00:08]} 45. Kd3 {[%clk 0:00:14]}  Kg5 {[%clk 0:00:08]} 46. g3 {[%clk 0:00:15]}  h5 {[%clk 0:00:08]} 47. Be7+ {[%clk 0:00:12]}  Kg6 {[%clk 0:00:08]} 48. Kc3 {[%clk 0:00:11]}  Bd7 {[%clk 0:00:08]} 49. h4 {[%clk 0:00:11]}  Bc7 {[%clk 0:00:08]} 50. Bc5 {[%clk 0:00:10]}  Bb8 {[%clk 0:00:09]} 51. Kb4 {[%clk 0:00:10]}  Kf6 {[%clk 0:00:09]} 52. Bb5 {[%clk 0:00:08]}  Bc8 {[%clk 0:00:09]} 53. Bc4 {[%clk 0:00:06]}  Bd7 {[%clk 0:00:08]} 54. Be3 {[%clk 0:00:06]}  Ke7 {[%clk 0:00:05]} 55. Bg5+ {[%clk 0:00:05]}  Kd6 {[%clk 0:00:05]} 56. Bf7 {[%clk 0:00:05]}  Kc6 {[%clk 0:00:05]} 57. Bxh5 {[%clk 0:00:05]}  Bd6+ {[%clk 0:00:04]} 58. Kc3 {[%clk 0:00:02]}  Kb6 {[%clk 0:00:04]} 0-1


[Site "https://www.chess.com"]

[Event "Titled Tuesday Blitz October 11 Early 2022"]
[White "Shandrygin, Nikita"]
[Black "Sowul, Bartosz"]
[WhiteFideId "24198668"]
[BlackFideId "1137590"]
[WhiteElo "2323"]
[BlackElo "2188"]
[Result "0-1"]
[Round "06"]
[TimeControl "180+1"]
[Date "2022.10.12"]
[WhiteClock "0:00:04"]
[BlackClock "0:00:06"]

1. e4 {[%clk 0:03:00]}  c5 {[%clk 0:02:59]} 2. Nf3 {[%clk 0:03:00]}  d6 {[%clk 0:02:59]} 3. d4 {[%clk 0:03:01]}  cxd4 {[%clk 0:03:00]} 4. Nxd4 {[%clk 0:03:02]}  Nf6 {[%clk 0:03:00]} 5. Nc3 {[%clk 0:03:02]}  Nc6 {[%clk 0:03:01]} 6. f3 {[%clk 0:03:03]}  e5 {[%clk 0:03:01]} 7. Nb3 {[%clk 0:03:02]}  Be7 {[%clk 0:03:00]} 8. Be3 {[%clk 0:03:03]}  O-O {[%clk 0:03:00]} 9. Qd2 {[%clk 0:03:02]}  a5 {[%clk 0:03:01]} 10. Bb5 {[%clk 0:03:00]}  Na7 {[%clk 0:03:01]} 11. Be2 {[%clk 0:02:55]}  Nc6 {[%clk 0:02:54]} 12. a4 {[%clk 0:02:51]}  Be6 {[%clk 0:02:51]} 13. Nd5 {[%clk 0:02:48]}  Bxd5 {[%clk 0:02:33]} 14. exd5 {[%clk 0:02:46]}  Nb4 {[%clk 0:02:34]} 15. c4 {[%clk 0:02:44]}  Nd7 {[%clk 0:02:33]} 16. O-O {[%clk 0:02:40]}  b6 {[%clk 0:02:32]} 17. f4 {[%clk 0:02:16]}  Rc8 {[%clk 0:02:06]} 18. Rfc1 {[%clk 0:01:24]}  Nc5 {[%clk 0:01:40]} 19. Ra3 {[%clk 0:01:09]}  e4 {[%clk 0:00:56]} 20. Nd4 {[%clk 0:00:56]}  Bf6 {[%clk 0:00:52]} 21. g4 {[%clk 0:00:16]}  Ncd3 {[%clk 0:00:41]} 22. Bxd3 {[%clk 0:00:16]}  exd3 {[%clk 0:00:42]} 23. Rxd3 {[%clk 0:00:16]}  Bxd4 {[%clk 0:00:40]} 24. Bxd4 {[%clk 0:00:16]}  Nxd3 {[%clk 0:00:38]} 25. Qxd3 {[%clk 0:00:17]}  Qh4 {[%clk 0:00:38]} 26. Qf3 {[%clk 0:00:10]}  Rfe8 {[%clk 0:00:33]} 27. Kg2 {[%clk 0:00:10]}  Re7 {[%clk 0:00:27]} 28. b3 {[%clk 0:00:10]}  Rce8 {[%clk 0:00:27]} 29. Rc2 {[%clk 0:00:10]}  Re1 {[%clk 0:00:24]} 30. Bf2 {[%clk 0:00:10]}  Qf6 {[%clk 0:00:19]} 31. Bxe1 {[%clk 0:00:10]}  Rxe1 {[%clk 0:00:20]} 32. Re2 {[%clk 0:00:10]}  Rxe2+ {[%clk 0:00:19]} 33. Qxe2 {[%clk 0:00:11]}  h5 {[%clk 0:00:16]} 34. Qe8+ {[%clk 0:00:10]}  Kh7 {[%clk 0:00:16]} 35. Qe4+ {[%clk 0:00:11]}  g6 {[%clk 0:00:13]} 36. gxh5 {[%clk 0:00:10]}  Qb2+ {[%clk 0:00:13]} 37. Kg3 {[%clk 0:00:09]}  Qxb3+ {[%clk 0:00:14]} 38. Qf3 {[%clk 0:00:10]}  Qxc4 {[%clk 0:00:13]} 39. hxg6+ {[%clk 0:00:11]}  fxg6 {[%clk 0:00:14]} 40. Kg4 {[%clk 0:00:10]}  Qxa4 {[%clk 0:00:13]} 41. Qe3 {[%clk 0:00:09]}  Qd7+ {[%clk 0:00:13]} 42. Kg3 {[%clk 0:00:09]}  Kg7 {[%clk 0:00:13]} 43. Qd4+ {[%clk 0:00:09]}  Kg8 {[%clk 0:00:13]} 44. Qxb6 {[%clk 0:00:10]}  a4 {[%clk 0:00:13]} 45. Qb8+ {[%clk 0:00:10]}  Kg7 {[%clk 0:00:13]} 46. Qb4 {[%clk 0:00:11]}  Kh7 {[%clk 0:00:12]} 47. h4 {[%clk 0:00:09]}  Kg7 {[%clk 0:00:11]} 48. Qd4+ {[%clk 0:00:08]}  Kh7 {[%clk 0:00:11]} 49. Qd3 {[%clk 0:00:06]}  Qe8 {[%clk 0:00:10]} 50. Qa3 {[%clk 0:00:04]}  Kh6 {[%clk 0:00:06]} 51. Qf3 {[%clk 0:00:02]}  Qe1+ {[%clk 0:00:06]} 52. Kg2 {[%clk 0:00:02]}  Qd2+ {[%clk 0:00:06]} 53. Kg3 {[%clk 0:00:03]}  Qc2 {[%clk 0:00:05]} 54. Qe3 {[%clk 0:00:02]}  Qb3 {[%clk 0:00:05]} 55. Kf3 {[%clk 0:00:03]}  Qxe3+ {[%clk 0:00:05]} 56. Kxe3 {[%clk 0:00:04]}  a3 {[%clk 0:00:05]} 57. f5 {[%clk 0:00:04]}  gxf5 {[%clk 0:00:06]} 0-1


[Site "https://www.chess.com"]